bitfinex/quotes_ETHUSD_20250426
["timestamp","ask_amount","ask_price","bid_price","bid_amount"]
[1745640660835,5.0873,1798.6,1798.2,6.32178138]
[1745640661010,5.0873,1798.6,1798.2,6.32176116]
[1745640661206,10.64720159,1798.6,1798.2,6.32176116]
[1745640661537,10.64720159,1798.6,1798.2,0.76088935]
[1745640661538,5.560391,1798.5,1798.2,0.76088935]
[1745640661701,5.560391,1798.5,1798.1,6.39081735]
[1745640662812,5.56057356,1798.4,1798.0,6.3624336]
[1745640663019,0.3813,1798.3,1797.9,6.75694744]
[1745640663217,0.3813,1798.3,1797.9,6.75690543]
[1745640663418,5.94214353,1798.3,1798.0,0.67569054]
[1745640663832,0.3813,1798.3,1798.0,0.67569054]
[1745640664038,0.3813,1798.3,1798.1,5.56139287]
[1745640664332,4.706,1798.6,1798.2,6.36189788]
[1745640664524,4.706,1798.6,1798.3,5.56065579]
[1745640665607,4.706,1798.6,1798.3,11.12123977]
[1745640666220,4.706,1798.6,1798.3,5.56058398]
[1745640666922,4.706,1798.6,1798.3,5.56057734]
[1745640667418,4.706,1798.6,1798.4,5.56044226]
[1745640668248,4.706,1798.6,1798.3,5.56056468]
[1745640668550,4.706,1798.6,1798.4,0.55605647]
[1745640668703,4.706,1798.6,1798.3,5.56056434]
[1745640669651,4.706,1798.6,1798.4,5.56048769]
[1745640670742,4.706,1798.6,1798.3,5.5606203]
[1745640671309,4.706,1798.6,1798.3,11.12119471]
[1745640672653,4.706,1798.6,1798.3,11.12113698]
[1745640672857,4.706,1798.6,1798.3,12.31334068]
[1745640673523,4.706,1798.6,1798.4,5.56048546]
[1745640674448,4.706,1798.6,1798.3,6.75281744]
[1745640674861,4.706,1798.6,1798.4,5.56048626]
[1745640675460,5.9416828,1798.5,1798.2,0.8009]
[1745640675664,5.9416828,1798.5,1798.1,5.56128631]
[1745640675861,5.9416828,1798.5,1798.1,6.88045664]
[1745640676156,0.51983715,1798.4,1798.1,6.88045664]
[1745640676361,0.51983715,1798.4,1798.2,5.56108862]
[1745640677462,0.3813,1798.5,1798.2,5.56108862]
[1745640678865,0.51985241,1798.4,1798.2,5.56108862]
[1745640679169,0.3813,1798.5,1798.2,5.56108862]
[1745640679967,0.51984764,1798.4,1798.2,5.56108862]
[1745640680140,0.3813,1798.5,1798.2,5.56108862]
[1745640680342,0.5198352,1798.4,1798.2,5.56108862]
[1745640680571,0.5198352,1798.4,1798.1,6.88029285]
[1745640680873,0.5198352,1798.4,1798.1,12.44149325]
[1745640681078,0.3813,1798.5,1798.1,12.44149325]
[1745640681631,0.3813,1798.5,1798.2,5.56106425]
[1745640682776,0.3813,1798.5,1798.2,5.56089602]
[1745640683073,0.3813,1798.5,1798.3,5.56068578]
[1745640683241,4.706,1798.6,1798.3,6.32828578]
[1745640683565,4.706,1798.6,1798.4,5.56038744]
[1745640684876,4.706,1798.6,1798.3,6.32821131]
[1745640685047,4.706,1798.6,1798.3,6.32817384]
[1745640686663,4.706,1798.6,1798.3,13.20207047]
[1745640686983,4.706,1798.6,1798.3,7.64149663]
[1745640687974,4.706,1798.6,1798.3,1.31332672]
[1745640688172,5.94168599,1798.5,1798.1,6.39263756]
[1745640688473,6.08062192,1798.4,1798.0,5.56162835]
[1745640688841,0.3813,1798.3,1798.0,5.56162835]
[1745640689041,0.3813,1798.3,1798.0,6.75711906]
[1745640689355,0.3813,1798.3,1798.0,6.75705218]
[1745640689562,0.3813,1798.3,1798.0,12.31848885]
[1745640689761,0.3813,1798.3,1798.1,5.56142487]
[1745640690677,0.31198467,1798.4,1798.1,5.56142487]
[1745640691445,0.31198467,1798.4,1798.1,6.79326624]
[1745640694680,5.94161734,1798.5,1798.1,6.79326624]
[1745640694844,5.94161734,1798.5,1798.1,5.56142487]
[1745640695047,0.3813,1798.5,1798.0,0.62552843]
[1745640695276,0.3813,1798.5,1798.2,5.56098225]
[1745640697176,10.266057,1798.6,1798.2,5.56098225]
[1745640697554,0.5203063,1798.5,1798.2,5.56098225]
[1745640697752,0.5203063,1798.5,1798.2,6.75239433]
[1745640697987,4.706,1798.6,1798.3,5.5606759]
[1745640698466,4.706,1798.6,1798.4,0.7637]
[1745640699181,4.706,1798.6,1798.4,6.32404032]
[1745640699569,4.706,1798.6,1798.4,0.7637]
[1745640699878,4.706,1798.6,1798.3,5.56068145]
[1745640700253,4.706,1798.6,1798.2,6.95017011]
[1745640700762,4.706,1798.6,1798.2,12.51105133]
[1745640701084,4.706,1798.6,1798.2,12.51099314]
[1745640701486,4.706,1798.6,1798.2,12.51100928]
[1745640701890,4.706,1798.6,1798.2,6.95010965]
[1745640702994,4.706,1798.6,1798.3,5.56080133]
[1745640706391,4.706,1798.6,1798.3,6.81189243]
[1745640708491,4.706,1798.6,1798.2,0.7637]
[1745640708696,10.64730109,1798.6,1798.2,5.56099506]
[1745640708858,1.04089451,1798.5,1798.2,5.56099506]
[1745640709060,1.04089451,1798.5,1798.1,5.56121941]
[1745640709394,10.64730109,1798.6,1798.1,5.56121941]
[1745640709558,12.26800291,1798.6,1798.1,5.56121941]
[1745640709896,5.56020547,1798.5,1798.1,1.1902231]
[1745640710770,11.12069504,1798.5,1798.1,1.1902231]
[1745640710975,5.56020547,1798.5,1798.1,1.1902231]
[1745640711766,5.56020547,1798.5,1798.1,5.56142157]
[1745640713400,5.56020547,1798.5,1798.0,10.23901268]
[1745640713605,5.56050505,1798.4,1798.0,17.38061101]
[1745640713903,5.56050505,1798.4,1798.0,11.8190766]
[1745640714595,5.56035107,1798.5,1798.1,5.56140979]
[1745640714895,5.56035107,1798.5,1798.2,0.5562]
[1745640715103,5.56035107,1798.5,1798.1,5.56140979]
[1745640717012,5.56035107,1798.5,1798.1,11.12270721]
[1745640717220,5.56035107,1798.5,1798.1,5.56129742]
[1745640720325,5.56053484,1798.4,1798.0,8.81907263]
[1745640720521,5.56037642,1798.5,1798.1,5.56142487]
[1745640721023,5.56051471,1798.4,1798.0,8.81912408]
[1745640721524,5.94181471,1798.4,1798.0,8.81912408]
[1745640721992,0.3813,1798.4,1798.0,14.38061749]
[1745640722439,0.3813,1798.4,1798.0,14.38058129]
[1745640722626,0.3813,1798.4,1798.0,8.81905907]
[1745640723003,0.3813,1798.4,1798.0,14.38055205]
[1745640723821,0.3813,1798.4,1798.1,5.56140307]
[1745640724000,12.26799036,1798.6,1798.1,6.44320818]
[1745640724199,12.26799036,1798.6,1798.2,5.56100783]
[1745640724415,1.04127624,1798.5,1798.2,5.56100783]
[1745640725024,0.52063812,1798.5,1798.2,5.56100783]
[1745640725420,10.64728854,1798.6,1798.2,5.56100783]
[1745640726629,0.83301083,1798.5,1798.2,5.56100783]
[1745640727132,0.31237906,1798.5,1798.2,5.56100783]
[1745640727332,5.56057769,1798.4,1798.0,6.6141991]
[1745640727632,5.94187769,1798.4,1798.0,6.6141991]
[1745640728632,5.56227003,1797.9,1797.5,6.32326349]
[1745640728951,5.56227771,1797.9,1797.5,0.76]
[1745640729242,0.3813,1797.8,1797.4,6.32339352]
[1745640729551,0.3813,1797.8,1797.5,0.28853575]
[1745640730004,5.94369843,1797.8,1797.5,0.28853575]
[1745640730733,6.53806827,1797.8,1797.5,0.28853575]
[1745640733934,0.97566984,1797.8,1797.5,0.28853575]
[1745640734435,0.3813,1797.8,1797.5,0.28853575]
[1745640734634,5.9431535,1798.0,1797.5,6.47655067]
[1745640734840,5.9431535,1798.0,1797.6,5.56281308]
[1745640735137,0.3813,1797.8,1797.5,5.85167188]
[1745640738846,5.56266559,1797.7,1797.3,6.94864874]
[1745640739034,10.26366559,1797.7,1797.3,6.94864874]
[1745640739422,10.26366559,1797.7,1797.3,7.23736639]
[1745640739744,4.701,1797.7,1797.3,12.80104049]
[1745640739923,4.701,1797.7,1797.3,14.38114454]
[1745640740241,4.701,1797.7,1797.4,5.56357236]
[1745640741255,4.701,1797.7,1797.5,5.56326423]
[1745640746827,4.701,1797.7,1797.4,5.56340435]
[1745640747034,10.64519551,1797.7,1797.3,0.28871765]
[1745640747239,11.70971506,1797.7,1797.3,5.8525817]
[1745640747548,5.56299864,1797.6,1797.3,0.28871765]
[1745640749151,6.14681955,1797.7,1797.4,1.19135729]
[1745640749349,6.14681955,1797.7,1797.4,6.75492258]
[1745640749536,4.701,1797.7,1797.6,1.19135729]
[1745640749742,4.701,1797.7,1797.6,6.75433014]
[1745640750053,4.701,1797.7,1797.6,1.19135729]
[1745640750426,4.701,1797.7,1797.6,6.75433014]
[1745640751150,4.701,1797.7,1797.6,1.19135729]
[1745640751655,4.701,1797.7,1797.5,6.18837086]
[1745640754353,4.701,1797.7,1797.5,0.62524664]
[1745640754856,4.701,1797.7,1797.5,6.18832394]
[1745640755027,4.701,1797.7,1797.5,7.44238919]
[1745640756355,4.701,1797.7,1797.5,6.18832394]
[1745640757963,4.701,1797.7,1797.5,0.62524664]
[1745640758138,4.701,1797.7,1797.4,6.3523286]
[1745640758646,4.701,1797.7,1797.4,5.5634286]
[1745640758843,4.701,1797.7,1797.3,0.91396429]
[1745640758844,10.26378755,1797.7,1797.3,0.91396429]
[1745640759050,17.44748592,1797.7,1797.3,0.91396429]
[1745640759249,5.56297711,1797.6,1797.3,0.91396429]
[1745640759429,5.94427711,1797.6,1797.3,0.91396429]
[1745640761662,0.3813,1797.6,1797.3,0.91396429]
[1745640761865,0.3813,1797.6,1797.3,6.47786311]
[1745640763663,0.3813,1797.6,1797.3,0.91396429]
[1745640764563,5.94430272,1797.6,1797.3,0.91396429]
[1745640765065,5.94430272,1797.6,1797.3,0.62524664]
[1745640765267,13.29043793,1797.6,1797.2,5.56401876]
[1745640765446,7.72719671,1797.6,1797.2,5.56401876]
[1745640765774,5.56339878,1797.5,1797.1,6.23956389]
[1745640768737,5.56339878,1797.5,1797.1,6.52755988]
[1745640770474,7.72731753,1797.6,1797.2,5.56419424]
[1745640771686,13.29054056,1797.6,1797.2,5.56419424]
[1745640771885,5.56329439,1797.5,1797.1,6.52758525]
[1745640773669,5.56329439,1797.5,1797.2,1.19145988]
[1745640775152,6.89234131,1797.5,1797.2,1.19145988]
[1745640775359,1.32904692,1797.5,1797.2,6.75566109]
[1745640775558,5.94451299,1797.6,1797.2,6.75566109]
[1745640775857,5.94451299,1797.6,1797.2,1.19145988]
[1745640776073,5.56332981,1797.5,1797.2,1.19145988]
[1745640776279,5.94442965,1797.6,1797.2,6.75565635]
[1745640776591,5.563543,1797.5,1797.1,0.33799599]
[1745640776798,6.71434132,1797.5,1797.1,1.52945587]
[1745640777106,5.56362058,1797.4,1797.1,1.52945587]
[1745640777394,5.94503359,1797.4,1797.1,1.52945587]
[1745640777697,5.94503359,1797.4,1797.1,1.24145988]
[1745640777885,5.94503359,1797.4,1797.1,0.05]
[1745640778084,7.21094791,1797.4,1797.1,0.05]
[1745640780498,1.26591432,1797.4,1797.3,5.5639014]
[1745640780699,0.3813,1798.2,1797.3,5.5639014]
[1745640780700,0.3813,1798.3,1797.9,5.56197958]
[1745640780899,0.51898993,1798.2,1797.8,0.7698]
[1745640781119,0.51898993,1798.2,1798.1,9.33122594]
[1745640781962,4.701,1798.8,1798.4,5.56042075]
[1745640782163,5.20923,1798.8,1798.4,6.75188063]
[1745640782798,5.20923,1798.8,1798.4,6.75169131]
[1745640783180,5.20923,1798.8,1798.5,5.55997329]
[1745640783391,4.701,1798.8,1798.5,5.55996974]
[1745640785815,4.701,1798.8,1798.5,11.11989775]
[1745640786010,4.701,1798.8,1798.5,5.55992801]
[1745640786311,4.701,1798.8,1798.6,5.55986162]
[1745640786710,4.701,1798.8,1798.4,5.56035527]
[1745640786711,4.701,1798.8,1798.5,5.56001396]
[1745640787907,4.701,1798.8,1798.6,5.55986997]
[1745640788280,4.701,1798.8,1798.7,5.5595708]
[1745640788711,4.701,1798.8,1798.6,5.55986997]
[1745640790982,4.701,1798.8,1798.6,11.1193942]
[1745640791425,4.701,1798.8,1798.6,5.55967499]
[1745640794629,4.701,1798.8,1798.7,5.5595708]
[1745640794826,9.18250337,1799.3,1798.7,5.5595708]
[1745640794827,5.0773,1799.1,1798.9,5.55872927]
[1745640795060,0.3813,1799.4,1799.3,5.55771688]
[1745640795330,4.696,1799.6,1799.4,5.55716309]
[1745640795625,4.696,1799.6,1799.1,0.7751]
[1745640795843,5.1656,1799.6,1799.1,5.55820864]
[1745640796045,0.3813,1799.5,1799.1,5.55827258]
[1745640796628,0.3813,1799.5,1798.9,1.18723372]
[1745640796924,0.3813,1799.5,1799.1,5.55827728]
[1745640797524,4.696,1799.6,1799.2,5.55798165]
[1745640797730,4.696,1799.6,1799.3,5.55759617]
[1745640797926,4.696,1799.6,1799.3,11.11508092]
[1745640798230,4.696,1799.6,1799.4,5.55720254]
[1745640798528,4.695,1799.7,1799.6,5.55666305]
[1745640798697,4.695,1799.7,1799.5,5.55691593]
[1745640799741,4.695,1799.7,1799.6,5.55679039]
[1745640800737,4.695,1799.7,1799.5,5.55692896]
[1745640801941,10.72113757,1799.7,1799.2,5.5578569]
[1745640802116,0.3813,1799.6,1799.2,5.5578569]
[1745640802530,5.93811172,1799.6,1799.2,5.5578569]
[1745640803132,0.3813,1799.6,1799.2,5.5578569]
[1745640803301,0.3813,1799.6,1799.3,5.55769849]
[1745640803508,0.3813,1799.6,1799.4,5.55738121]
[1745640803919,0.3813,1799.6,1799.2,5.55790851]
[1745640804119,7.04840457,1799.6,1799.2,5.55790851]
[1745640804435,1.49155691,1799.6,1799.2,11.11573067]
[1745640804617,7.04840933,1799.6,1799.2,5.55782216]
[1745640805328,1.49155691,1799.6,1799.2,5.55781241]
[1745640806238,1.49155691,1799.6,1799.3,5.55767679]
[1745640806644,1.49155691,1799.6,1799.2,5.55784373]
[1745640806840,1.49155691,1799.6,1799.1,6.99762601]
[1745640807010,1.49155691,1799.6,1799.3,5.55771586]
[1745640807337,1.49155691,1799.6,1799.1,6.99763037]
[1745640807545,7.04835857,1799.6,1799.2,5.55791231]
[1745640807740,1.49155691,1799.6,1799.3,5.55768984]
[1745640808042,1.49155691,1799.6,1799.3,5.55753811]
[1745640808341,0.3813,1799.6,1799.3,5.55753811]
[1745640809541,0.3813,1799.6,1799.2,5.55788683]
[1745640809542,5.93810078,1799.6,1799.2,5.55789169]
[1745640810838,0.3813,1799.6,1799.3,5.55751952]
[1745640811040,10.72110361,1799.7,1799.3,5.55751952]
[1745640811041,4.695,1799.7,1799.5,5.55709919]
[1745640811233,4.695,1799.7,1799.5,6.11280911]
[1745640811421,4.695,1799.7,1799.6,5.55679039]
[1745640813049,4.695,1799.7,1799.5,6.11261829]
[1745640813219,4.695,1799.7,1799.6,5.55679039]
[1745640814548,4.695,1799.7,1799.5,6.11265576]
[1745640816238,4.695,1799.7,1799.5,11.66955794]
[1745640816414,4.695,1799.7,1799.5,6.1126121]
[1745640818433,4.695,1799.7,1799.3,5.5575509]
[1745640818627,5.55698558,1799.6,1799.2,5.55800725]
[1745640818815,0.3813,1799.5,1799.2,5.55800725]
[1745640821048,0.3813,1799.5,1799.2,5.55779586]
[1745640821351,0.3813,1799.5,1799.3,5.55759188]
[1745640822049,0.3813,1799.5,1799.2,5.55789707]
[1745640823123,0.3813,1799.5,1799.3,5.55770737]
[1745640823773,0.3813,1799.5,1799.0,0.799]
[1745640823946,5.55822998,1799.2,1798.8,0.8098]
[1745640824122,5.55854986,1799.1,1798.8,0.8098]
[1745640824461,10.80689018,1799.2,1798.8,0.8098]
[1745640824627,10.80689018,1799.2,1798.8,6.36904093]
[1745640825831,5.248823,1799.2,1798.8,11.92807362]
[1745640826340,5.248823,1799.2,1798.8,6.36883269]
[1745640827558,10.80696797,1799.2,1798.8,6.36883269]
[1745640828153,5.248823,1799.2,1798.9,5.55891212]
[1745640830634,5.248823,1799.2,1798.8,6.36890648]
[1745640830833,4.693,1799.2,1798.9,5.55882396]
[1745640833040,4.693,1799.2,1798.8,7.11074087]
[1745640833240,10.2511222,1799.2,1798.8,7.11074087]
[1745640833440,10.2511222,1799.2,1798.8,6.3688671]
[1745640834070,4.693,1799.2,1798.7,6.6091777]
[1745640834275,5.9396435,1799.1,1798.7,6.6091777]
[1745640834489,5.55888796,1799.0,1798.6,1.40633531]
[1745640834637,0.3813,1799.1,1798.4,6.34204791]
[1745640834638,5.94076148,1798.8,1798.4,6.34204791]
[1745640834979,10.63476148,1798.8,1798.4,6.34204791]
[1745640836981,5.0753,1798.8,1798.4,6.34198468]
[1745640837134,5.0753,1798.8,1798.5,5.55997057]
[1745640840874,5.0753,1798.8,1798.5,11.11993642]
[1745640841176,5.0753,1798.8,1798.5,5.55996585]
[1745640841548,5.0753,1798.8,1798.6,5.55984487]
[1745640841882,5.0753,1798.8,1798.5,11.11993215]
[1745640842059,5.0753,1798.8,1798.5,11.11993369]
[1745640842238,5.58283,1798.8,1798.5,5.55996585]
[1745640842442,5.58283,1798.8,1798.5,11.11991831]
[1745640842975,5.58283,1798.8,1798.5,5.55995246]
[1745640843692,5.58283,1798.8,1798.4,11.90235309]
[1745640844073,5.58283,1798.8,1798.4,6.34201158]
[1745640844284,11.14214543,1798.8,1798.4,6.34202929]
[1745640844472,0.558283,1798.7,1798.4,5.56032929]
[1745640846981,0.558283,1798.7,1798.4,11.12064291]
[1745640847158,0.558283,1798.7,1798.5,5.56017491]
[1745640848580,0.558283,1798.7,1798.4,5.56032593]
[1745640848757,11.14211005,1798.8,1798.4,11.12065186]
[1745640849277,11.14211005,1798.8,1798.4,5.56032593]
[1745640849451,11.14211005,1798.8,1798.4,11.12057979]
[1745640849643,5.58283,1798.8,1798.4,11.12057979]
[1745640850143,5.58283,1798.8,1798.4,5.56025386]
[1745640850349,0.558283,1798.7,1798.4,5.56025386]
[1745640852955,5.58283,1798.8,1798.5,5.56003475]
[1745640853586,11.14221146,1798.8,1798.4,5.56025386]
[1745640854785,5.55979221,1798.7,1798.3,6.96708046]
[1745640855106,5.55979221,1798.7,1798.3,12.52764958]
[1745640855252,11.14227669,1798.8,1798.4,5.56048647]
[1745640855453,1.11422767,1798.7,1798.4,5.56048647]
[1745640862192,1.11422767,1798.7,1798.4,5.56025575]
[1745640862626,6.67396923,1798.7,1798.3,0.62463531]
[1745640862805,6.67396923,1798.7,1798.3,5.5607824]
[1745640863089,0.3813,1798.6,1798.3,5.5607824]
[1745640863290,1.08682692,1798.6,1798.3,5.5607824]
[1745640864493,6.64681321,1798.6,1798.2,6.47281683]
[1745640865297,5.56020663,1798.5,1798.2,0.28726703]
[1745640865592,6.64689399,1798.6,1798.2,5.84836475]
[1745640865890,4.694,1798.5,1798.2,5.84836475]
[1745640866708,11.38829528,1798.5,1798.2,0.28726703]
[1745640867011,11.38829528,1798.5,1798.1,5.56126701]
[1745640868304,5.8280894,1798.5,1798.1,11.40893698]
[1745640868487,5.8280894,1798.5,1798.1,5.84766997]
[1745640869320,11.38829708,1798.5,1798.1,5.84766997]
[1745640871312,5.8280894,1798.5,1798.1,5.84766508]
[1745640871815,11.38835168,1798.5,1798.1,5.84766508]
[1745640873029,5.56061293,1798.4,1798.1,0.28648338]
[1745640873206,5.56173526,1798.0,1797.7,0.7871]
[1745640873514,5.56209444,1797.9,1797.5,6.7692745]
[1745640873732,1.96309754,1797.9,1797.5,0.28675447]
[1745640873914,11.12524383,1797.8,1797.5,0.28675447]
[1745640874115,5.0062191,1798.3,1798.2,5.56111667]
[1745640874427,0.3122191,1798.3,1798.2,6.34821667]
[1745640874718,0.3122191,1798.5,1798.2,6.34820526]
[1745640875015,1.40696648,1798.5,1798.2,6.34820526]
[1745640875388,5.0753,1798.6,1798.2,6.34799148]
[1745640875582,5.0753,1798.6,1798.3,5.56059591]
[1745640876898,5.0753,1798.6,1798.2,6.34804172]
[1745640877096,5.0753,1798.6,1798.2,11.90893726]
[1745640877417,5.0753,1798.6,1798.3,5.56072496]
[1745640877645,6.169995,1798.6,1798.3,5.56072496]
[1745640878522,6.169995,1798.6,1798.2,6.34807895]
[1745640878816,11.72988543,1798.6,1798.2,6.34807895]
[1745640879341,6.169995,1798.6,1798.2,6.34807895]
[1745640880415,11.72996729,1798.6,1798.2,6.34799438]
[1745640880620,1.17299673,1798.5,1798.1,6.75154653]
[1745640880787,6.73323229,1798.5,1798.1,6.75154653]
[1745640882416,1.17299673,1798.5,1798.1,6.75154653]
[1745640882589,1.17299673,1798.5,1798.2,5.56110538]
[1745640885622,10.63536437,1798.6,1798.2,5.56110538]
[1745640885824,10.63536437,1798.6,1798.3,5.56052689]
[1745640885825,5.0753,1798.6,1798.3,5.56052689]
[1745640887125,5.38739034,1798.6,1798.3,5.56052689]
[1745640887829,5.0753,1798.6,1798.3,5.56052689]
[1745640889495,5.38746594,1798.6,1798.3,5.56052689]
[1745640889826,6.48217203,1798.6,1798.3,5.56052689]
[1745640890127,6.17000609,1798.6,1798.3,5.56052689]
[1745640894627,6.17000609,1798.6,1798.4,5.56032662]
[1745640894832,17.0603,1799.0,1798.5,1.19024458]
[1745640895001,5.0743,1799.0,1798.7,5.55934936]
[1745640895905,5.0743,1799.0,1798.6,5.55969228]
[1745640896111,0.50743,1798.9,1798.6,5.5596458]
[1745640896736,0.50743,1798.9,1798.6,5.5598799]
[1745640897834,4.693,1799.0,1798.9,5.55895269]
[1745640898138,4.693,1799.3,1799.1,5.55815532]
[1745640898356,0.3813,1799.6,1799.2,0.8302]
[1745640898516,5.0743,1799.8,1799.3,6.18227831]
[1745640898853,4.693,1799.8,1799.6,5.55662028]
[1745640899141,4.693,1799.8,1799.5,6.38714672]
[1745640899142,4.693,1799.8,1799.5,6.38713125]
[1745640899744,4.693,1799.8,1799.6,5.55678113]
[1745640902049,4.693,1799.8,1799.6,5.55656115]
[1745640903717,4.693,1799.8,1799.6,11.11309194]
[1745640903917,4.693,1799.8,1799.6,5.55653079]
[1745640904135,4.693,1799.8,1799.5,6.38714274]
[1745640904343,4.693,1799.8,1799.6,5.55678567]
[1745640905156,4.693,1799.8,1799.5,6.38715405]
[1745640905314,4.693,1799.8,1799.6,5.5567851]
[1745640905853,4.693,1799.8,1799.6,5.55678811]
[1745640909747,0.3813,1799.7,1799.2,6.32414314]
[1745640909929,0.3813,1799.6,1799.1,0.62456143]
[1745640910131,5.55714702,1799.5,1799.0,6.32491308]
[1745640910314,4.69,1799.4,1799.0,6.32491308]
[1745640910514,4.69,1799.4,1799.0,6.73873173]
[1745640910920,0.3813,1799.3,1798.9,6.18326438]
[1745640911154,5.0713,1799.4,1799.1,5.55833454]
[1745640913476,5.0713,1799.4,1799.0,5.55845416]
[1745640913772,5.0713,1799.4,1799.0,5.5584359]
[1745640913958,5.0713,1799.4,1799.0,5.55864369]
[1745640914133,5.0713,1799.4,1799.0,11.11705131]
[1745640914745,5.0713,1799.4,1799.0,5.55840762]
[1745640914966,5.0713,1799.4,1799.0,11.11681296]
[1745640915165,5.0713,1799.4,1799.1,5.55830304]
[1745640915748,5.0713,1799.4,1799.0,5.5584481]
[1745640915971,5.0713,1799.4,1799.1,5.55829565]
[1745640916686,5.57843,1799.4,1798.9,5.55879338]
[1745640916872,11.13610896,1799.4,1798.9,5.55879338]
[1745640917378,5.93904558,1799.3,1798.8,5.55912245]
[1745640917585,5.93904558,1799.3,1798.8,5.55901041]
[1745640917790,5.93904558,1799.3,1798.7,6.31194547]
[1745640917958,7.05276408,1799.3,1798.8,5.5592314]
[1745640918384,1.49491756,1799.3,1798.9,5.55889516]
[1745640918588,7.05264017,1799.3,1798.8,5.55907289]
[1745640920291,5.55803648,1799.2,1798.7,6.31201193]
[1745640920583,0.3813,1799.1,1798.7,5.55941193]
[1745640920762,0.3813,1799.1,1798.7,5.55933148]
[1745640921887,0.3813,1799.1,1798.6,6.81190432]
[1745640922072,5.93980423,1799.1,1798.6,6.05930432]
[1745640922279,0.3813,1798.9,1798.6,6.05930432]
[1745640922657,0.3813,1798.9,1798.7,5.5595511]
[1745640922896,0.3813,1798.9,1798.7,5.5595708]
[1745640923104,0.3813,1798.9,1798.8,5.55926173]
[1745640923607,4.691,1799.0,1798.7,5.55938282]
[1745640924106,4.691,1799.0,1798.7,11.11871871]
[1745640924306,4.691,1799.0,1798.7,5.55933589]
[1745640926637,12.76133513,1799.3,1798.7,5.55933589]
[1745640926638,4.691,1799.3,1799.2,5.55802578]
[1745640926840,0.3813,1799.5,1799.2,0.49943889]
[1745640927042,21.363,1799.7,1799.3,5.55748883]
[1745640927043,27.30079285,1799.7,1799.3,5.55748883]
[1745640927247,27.30079285,1799.7,1799.2,6.83177352]
[1745640927417,30.03087214,1799.7,1799.2,5.55783463]
[1745640928258,5.55679181,1799.6,1799.2,5.55783463]
[1745640928413,30.03103904,1799.7,1799.2,5.55783463]
[1745640928853,35.58780802,1799.7,1799.2,5.55783463]
[1745640929013,30.03103904,1799.7,1799.2,5.55783463]
[1745640929560,24.47437929,1799.7,1799.2,5.55778084]
[1745640929780,24.47437929,1799.7,1799.3,5.55750341]
[1745640930212,2.44743793,1799.6,1799.2,5.55784555]
[1745640930407,21.7443,1799.7,1799.3,5.55755509]
[1745640931030,10.62879829,1799.7,1799.2,5.55785058]
[1745640935265,10.62879829,1799.7,1799.2,5.55781054]
[1745640935574,10.62879829,1799.7,1799.3,5.55770607]
[1745640936391,10.62879829,1799.7,1799.2,5.55781054]
[1745640936598,12.24730726,1799.7,1799.2,5.55781054]
[1745640936893,12.24730726,1799.7,1799.2,11.11561169]
[1745640937178,12.24730726,1799.7,1799.2,5.55780115]
[1745640937677,5.55681791,1799.6,1799.2,5.55780115]
[1745640937829,0.3813,1799.4,1799.0,5.55862068]
[1745640938035,4.69,1799.3,1799.0,5.55862068]
[1745640941274,4.69,1799.3,1799.0,11.11702587]
[1745640941472,4.69,1799.3,1799.0,5.55840519]
[1745640948696,6.4713,1799.6,1799.3,5.55771688]
[1745640948862,4.69,1799.8,1799.7,5.55648163]
[1745640949272,1e-08,1799.9,1799.8,5.5561729]
[1745640949599,1e-08,1799.9,1799.8,6.05561369]
[1745640951507,4.69000001,1799.9,1799.4,6.36854106]
[1745640951707,0.8503,1799.8,1799.3,5.55771688]
[1745640952003,0.3813,1799.8,1799.5,5.5569324]
[1745640952670,0.3813,1799.8,1799.5,5.55709919]
[1745640953003,0.3813,1799.8,1799.5,5.55690023]
[1745640953317,0.3813,1799.8,1799.5,5.55688062]
[1745640953517,0.3813,1799.8,1799.5,5.5568665]
[1745640954509,0.3813,1799.8,1799.5,5.55685814]
[1745640954717,4.69000001,1799.9,1799.6,0.49944079]
[1745640954882,1e-08,1799.9,1799.8,6.05561369]
[1745640957713,1e-08,1799.9,1799.6,5.55662775]
[1745640958414,1e-08,1799.9,1799.7,5.55640525]
[1745640960230,0.3813,1799.7,1799.3,6.31235842]
[1745640960515,0.3813,1799.7,1799.4,5.55737742]
[1745640960817,0.88833,1799.7,1799.4,5.55737742]
[1745640961208,0.3813,1799.7,1799.4,5.5571936]
[1745640962915,4.689,1799.8,1799.4,5.5571936]
[1745640963122,4.689,1799.8,1799.7,5.55648163]
[1745640963418,4.689,1799.8,1799.4,0.40954023]
[1745640963620,10.24541124,1799.8,1799.4,5.55726138]
[1745640963818,11.30808237,1799.8,1799.4,5.55726138]
[1745640964009,5.75167113,1799.8,1799.4,5.55726138]
[1745640964208,0.3813,1799.6,1799.2,0.787]
[1745640964406,0.3813,1799.6,1799.0,1.07226167]
[1745640964719,0.3813,1799.5,1799.0,5.84378437]
[1745640964919,4.689,1799.4,1799.0,5.84378437]
[1745640966547,4.689,1799.4,1799.1,5.55830654]
[1745640968392,11.30917049,1799.4,1799.0,0.28526167]
[1745640968819,11.30917049,1799.4,1799.0,5.84377578]
[1745640969218,5.75175715,1799.4,1799.0,5.84377578]
[1745640971140,5.75175715,1799.4,1799.0,11.4022171]
[1745640971438,5.75175715,1799.4,1799.0,5.84370299]
[1745640972749,5.75175715,1799.4,1799.0,11.40214132]
[1745640972951,5.75175715,1799.4,1799.0,5.8437]
[1745640973754,11.30930432,1799.4,1799.0,5.8437]
[1745640976261,5.55822014,1799.2,1799.0,0.28526167]
[1745640976564,5.93952014,1799.2,1798.8,6.34624484]
[1745640976722,5.93952014,1799.2,1798.8,6.63166033]
[1745640977963,0.3813,1799.2,1798.8,6.6314485]
[1745640978321,0.3813,1799.2,1798.9,5.5589464]
[1745640978814,0.3813,1799.2,1798.9,5.55881794]
[1745640980180,6.68865921,1799.3,1798.9,5.55881794]
[1745640981278,1.13093043,1799.3,1798.9,5.55874081]
[1745640981495,6.68866568,1799.3,1798.9,5.55879383]
[1745640982189,0.66886657,1799.2,1798.9,5.55879383]
[1745640982487,6.68866568,1799.3,1798.9,5.55879383]
[1745640984350,6.13305715,1799.4,1799.2,5.55802578]
[1745640984538,6.09,1799.5,1799.4,5.55740802]
[1745640984744,4.68900001,1799.9,1799.7,5.55634609]
[1745640984957,4.68900001,1799.9,1799.7,5.55626711]
[1745640985272,4.68900001,1799.9,1799.8,5.5561729]
[1745640985749,4.68900001,1799.9,1799.6,5.55663792]
[1745640985955,4.68900001,1799.9,1799.7,5.55628895]